[Event "*** SCC Grand Prix: Titled Tuesday Blitz"]
[Site "Chess.com"]
[Date "2020.08.25"]
[Round "2"]
[White "JozefKneht"]
[Black "pavelalexandru07"]
[Result "1-0"]
[WhiteElo "2443"]
[BlackElo "2214"]
[TimeControl "180+1"]
[EndTime "10:19:36 PDT"]
[Termination "JozefKneht won by resignation"]

1. Nf3 {[%clk 0:03:00.9]} 1... c5 {[%clk 0:02:59.7]} 2. c4 {[%clk 0:02:59.3]}
2... a6 {[%clk 0:02:56.7]} 3. g3 {[%clk 0:02:58.7]} 3... g6 {[%clk 0:02:56.6]}
4. Bg2 {[%clk 0:02:58.4]} 4... Bg7 {[%clk 0:02:56.9]} 5. Nc3 {[%clk 0:02:58.1]}
5... Nc6 {[%clk 0:02:56.7]} 6. O-O {[%clk 0:02:57.6]} 6... e6 {[%clk 0:02:57.1]}
7. a3 {[%clk 0:02:54.4]} 7... Nge7 {[%clk 0:02:56.6]} 8. Rb1 {[%clk 0:02:53.5]}
8... d5 {[%clk 0:02:49.9]} 9. cxd5 {[%clk 0:02:27.6]} 9... exd5 {[%clk
0:02:48.5]} 10. b4 {[%clk 0:02:27.2]} 10... d4 {[%clk 0:02:30.9]} 11. Ne4 {[%clk
0:02:26.1]} 11... c4 {[%clk 0:02:31.1]} 12. d3 {[%clk 0:02:23.6]} 12... c3
{[%clk 0:02:29.3]} 13. Bg5 {[%clk 0:02:22.4]} 13... O-O {[%clk 0:02:23.7]} 14.
e3 {[%clk 0:02:11.9]} 14... dxe3 {[%clk 0:02:17.1]} 15. fxe3 {[%clk 0:02:11.9]}
15... f6 {[%clk 0:01:24.8]} 16. Bf4 {[%clk 0:02:08]} 16... Be6 {[%clk
0:01:25.2]} 17. Nxc3 {[%clk 0:02:03.2]} 17... g5 {[%clk 0:01:25.2]} 18. Ne4
{[%clk 0:01:48.7]} 18... gxf4 {[%clk 0:01:23.8]} 19. gxf4 {[%clk 0:01:49.4]}
19... Nd5 {[%clk 0:01:08.4]} 20. Qd2 {[%clk 0:01:38.9]} 20... Qe7 {[%clk
0:01:07.3]} 21. Kh1 {[%clk 0:01:37.5]} 21... Rad8 {[%clk 0:01:06.6]} 22. Rg1
{[%clk 0:01:32.4]} 22... Kh8 {[%clk 0:01:05.7]} 23. Nc5 {[%clk 0:01:25.2]} 23...
Bg8 {[%clk 0:01:05]} 24. e4 {[%clk 0:01:22.3]} 24... Nb6 {[%clk 0:00:56.9]} 25.
Qe3 {[%clk 0:01:15.7]} 25... Nc8 {[%clk 0:00:54.5]} 26. Bh3 {[%clk 0:01:08.5]}
26... Nd6 {[%clk 0:00:53.7]} 27. Rg2 {[%clk 0:01:01]} 27... Bh6 {[%clk
0:00:30.5]} 28. Rbg1 {[%clk 0:00:57.1]} 28... Ne5 {[%clk 0:00:30]} 29. Nh4
{[%clk 0:00:47]} 29... b6 {[%clk 0:00:17.2]} 30. Nxa6 {[%clk 0:00:34.7]} 30...
f5 {[%clk 0:00:12.4]} 31. Nxf5 {[%clk 0:00:30]} 31... Nxf5 {[%clk 0:00:12]} 32.
Bxf5 {[%clk 0:00:30]} 32... Nxd3 {[%clk 0:00:10.3]} 33. Qxb6 {[%clk 0:00:28.1]}
33... Bxf4 {[%clk 0:00:10.2]} 34. Nc5 {[%clk 0:00:19.8]} 34... Nxc5 {[%clk
0:00:09.5]} 35. bxc5 {[%clk 0:00:19.6]} 35... Be3 {[%clk 0:00:09.3]} 36. Qb2+
{[%clk 0:00:15.7]} 36... Bd4 {[%clk 0:00:08.9]} 37. Qb1 {[%clk 0:00:04.3]} 37...
Bxg1 {[%clk 0:00:08.6]} 38. Qxg1 {[%clk 0:00:04.9]} 38... Qxc5 {[%clk
0:00:08.8]} 39. Qxc5 {[%clk 0:00:04.2]} 1-0

[Event "*** SCC Grand Prix: Titled Tuesday Blitz"]
[Site "Chess.com"]
[Date "2020.08.25"]
[Round "2"]
[White "saraswathii"]
[Black "alexrustemov"]
[Result "0-1"]
[WhiteElo "2293"]
[BlackElo "2659"]
[TimeControl "180+1"]
[EndTime "10:19:38 PDT"]
[Termination "alexrustemov won by resignation"]

1. e4 {[%clk 0:03:00.9]} 1... e6 {[%clk 0:02:59.6]} 2. d3 {[%clk 0:02:57.5]}
2... d5 {[%clk 0:02:59.5]} 3. Nd2 {[%clk 0:02:53.7]} 3... c5 {[%clk 0:02:59.7]}
4. Ngf3 {[%clk 0:02:50.8]} 4... Nc6 {[%clk 0:02:59.2]} 5. g3 {[%clk 0:02:50.7]}
5... g6 {[%clk 0:02:58.9]} 6. Bg2 {[%clk 0:02:50.9]} 6... Bg7 {[%clk 0:02:59.4]}
7. O-O {[%clk 0:02:50.3]} 7... Nge7 {[%clk 0:02:59.9]} 8. Qe2 {[%clk 0:02:50]}
8... b6 {[%clk 0:02:59.6]} 9. e5 {[%clk 0:02:50.1]} 9... Qc7 {[%clk 0:02:56.9]}
10. Re1 {[%clk 0:02:49.4]} 10... h6 {[%clk 0:02:56]} 11. h4 {[%clk 0:02:48.5]}
11... g5 {[%clk 0:02:55.1]} 12. hxg5 {[%clk 0:02:41.6]} 12... hxg5 {[%clk
0:02:56]} 13. Nxg5 {[%clk 0:02:41.4]} 13... Qxe5 {[%clk 0:02:55.6]} 14. Qxe5
{[%clk 0:02:39.3]} 14... Nxe5 {[%clk 0:02:43.6]} 15. Ngf3 {[%clk 0:02:33.2]}
15... N5c6 {[%clk 0:02:38.1]} 16. Nb3 {[%clk 0:02:29.5]} 16... Nb4 {[%clk
0:02:14.3]} 17. Re2 {[%clk 0:02:24.8]} 17... Ba6 {[%clk 0:02:12.1]} 18. a3
{[%clk 0:02:22.3]} 18... Nbc6 {[%clk 0:02:09.4]} 19. Re1 {[%clk 0:02:15.2]}
19... Rd8 {[%clk 0:02:02.5]} 20. Rd1 {[%clk 0:02:03.4]} 20... Nf5 {[%clk
0:01:37.5]} 21. c3 {[%clk 0:01:56.5]} 21... Bxd3 {[%clk 0:01:27.6]} 22. Rxd3
{[%clk 0:01:55.9]} 22... c4 {[%clk 0:01:27.7]} 23. Rd1 {[%clk 0:01:55.7]} 23...
cxb3 {[%clk 0:01:27.7]} 24. Nd2 {[%clk 0:01:55.6]} 24... Na5 {[%clk 0:01:27.2]}
25. Bf1 {[%clk 0:01:54]} 25... Nd6 {[%clk 0:01:25.6]} 26. Re1 {[%clk 0:01:44.6]}
26... Ndc4 {[%clk 0:01:13.4]} 27. Nf3 {[%clk 0:01:36.5]} 27... Bxc3 {[%clk
0:01:06.7]} 28. Bxc4 {[%clk 0:01:21.9]} 28... Nxc4 {[%clk 0:01:05.4]} 29. bxc3
{[%clk 0:01:21.9]} 29... b2 {[%clk 0:01:06.1]} 30. Bxb2 {[%clk 0:01:16.1]} 30...
Nxb2 {[%clk 0:01:07]} 31. a4 {[%clk 0:01:16.2]} 31... Nc4 {[%clk 0:01:06.7]} 32.
Nd4 {[%clk 0:01:13.6]} 32... Kd7 {[%clk 0:01:06.5]} 33. Ra2 {[%clk 0:01:05.6]}
33... Rc8 {[%clk 0:01:06.1]} 34. Rae2 {[%clk 0:01:03.5]} 34... Nd6 {[%clk
0:01:04.4]} 35. Re3 {[%clk 0:01:00.6]} 35... Ne4 {[%clk 0:01:03.6]} 36. Rc1
{[%clk 0:00:53.4]} 36... Rc4 {[%clk 0:01:02.4]} 37. a5 {[%clk 0:00:45.6]} 37...
bxa5 {[%clk 0:01:01]} 38. Kg2 {[%clk 0:00:29.6]} 38... Rhc8 {[%clk 0:00:59.9]}
39. Ra1 {[%clk 0:00:26.2]} 39... a4 {[%clk 0:00:59.5]} 40. Ne2 {[%clk
0:00:23.9]} 40... Nxc3 {[%clk 0:00:57.4]} 41. Nxc3 {[%clk 0:00:21.7]} 41... Rxc3
{[%clk 0:00:57.7]} 42. Rxc3 {[%clk 0:00:22.2]} 42... Rxc3 {[%clk 0:00:58.3]} 43.
Rxa4 {[%clk 0:00:22.8]} 43... Rc7 {[%clk 0:00:58.4]} 44. Rf4 {[%clk 0:00:19.5]}
44... Kc6 {[%clk 0:00:56.5]} 45. Ra4 {[%clk 0:00:19.9]} 45... Kb5 {[%clk
0:00:56.4]} 46. Ra1 {[%clk 0:00:19.3]} 46... a5 {[%clk 0:00:56.9]} 47. Kf3
{[%clk 0:00:19.9]} 47... a4 {[%clk 0:00:56.6]} 48. Kf4 {[%clk 0:00:20.5]} 48...
f6 {[%clk 0:00:47.8]} 49. Rb1+ {[%clk 0:00:20.4]} 49... Ka5 {[%clk 0:00:46.7]}
50. g4 {[%clk 0:00:19]} 50... Rc4+ {[%clk 0:00:45.6]} 51. Kg3 {[%clk 0:00:16.7]}
51... a3 {[%clk 0:00:46.5]} 52. Ra1 {[%clk 0:00:16.1]} 52... Ka4 {[%clk
0:00:43.2]} 53. f4 {[%clk 0:00:16.3]} 53... Kb3 {[%clk 0:00:41.4]} 54. g5 {[%clk
0:00:16.3]} 54... fxg5 {[%clk 0:00:41.1]} 55. fxg5 {[%clk 0:00:15.7]} 55... Kb2
{[%clk 0:00:41.6]} 0-1

[Event "*** SCC Grand Prix: Titled Tuesday Blitz"]
[Site "Chess.com"]
[Date "2020.08.25"]
[Round "2"]
[White "vladislavkovalev"]
[Black "Nf3c5"]
[Result "1-0"]
[WhiteElo "2887"]
[BlackElo "2550"]
[TimeControl "180+1"]
[EndTime "10:19:41 PDT"]
[Termination "vladislavkovalev won by checkmate"]

1. e4 {[%clk 0:03:00.9]} 1... c5 {[%clk 0:02:59.2]} 2. Be2 {[%clk 0:03:01]} 2...
d6 {[%clk 0:02:57.7]} 3. d3 {[%clk 0:03:01.9]} 3... g6 {[%clk 0:02:56]} 4. f4
{[%clk 0:03:02.8]} 4... Bg7 {[%clk 0:02:56.1]} 5. Nf3 {[%clk 0:03:03.7]} 5...
Nc6 {[%clk 0:02:56.3]} 6. O-O {[%clk 0:03:04.3]} 6... f5 {[%clk 0:02:52.4]} 7.
exf5 {[%clk 0:03:00.1]} 7... gxf5 {[%clk 0:02:50.8]} 8. Ng5 {[%clk 0:02:56.4]}
8... Nf6 {[%clk 0:02:48.3]} 9. Bh5+ {[%clk 0:02:56]} 9... Kd7 {[%clk 0:02:40.2]}
10. Nf7 {[%clk 0:02:51.5]} 10... Qg8 {[%clk 0:02:36.8]} 11. Nxh8 {[%clk
0:02:50.3]} 11... Bxh8 {[%clk 0:02:37.7]} 12. Bf3 {[%clk 0:02:49.1]} 12... Kc7
{[%clk 0:02:37.6]} 13. c3 {[%clk 0:02:43.6]} 13... Be6 {[%clk 0:02:30.1]} 14.
Qe2 {[%clk 0:02:41.2]} 14... Qf7 {[%clk 0:02:09.1]} 15. Na3 {[%clk 0:02:41]}
15... a6 {[%clk 0:02:08.7]} 16. Nc4 {[%clk 0:02:31.5]} 16... Rg8 {[%clk
0:02:05]} 17. a4 {[%clk 0:02:31.5]} 17... h5 {[%clk 0:01:34.3]} 18. Re1 {[%clk
0:02:30.8]} 18... Bd7 {[%clk 0:01:28.9]} 19. Be3 {[%clk 0:02:18.2]} 19... Nd5
{[%clk 0:01:25.3]} 20. Bd2 {[%clk 0:02:12.3]} 20... h4 {[%clk 0:01:21.8]} 21.
Qf2 {[%clk 0:01:58.9]} 21... Bf6 {[%clk 0:01:17.9]} 22. Re2 {[%clk 0:01:54.7]}
22... e5 {[%clk 0:01:16.5]} 23. fxe5 {[%clk 0:01:52.1]} 23... dxe5 {[%clk
0:01:15.4]} 24. Qxc5 {[%clk 0:01:49.3]} 24... Ne7 {[%clk 0:00:33.3]} 25. Nxe5
{[%clk 0:01:26.4]} 25... Bxe5 {[%clk 0:00:24.5]} 26. Rxe5 {[%clk 0:01:27.3]}
26... Ng6 {[%clk 0:00:25.1]} 27. Rd5 {[%clk 0:01:16.3]} 27... h3 {[%clk
0:00:17.7]} 28. Qd6+ {[%clk 0:01:14.5]} 28... Kc8 {[%clk 0:00:17.1]} 29. g3
{[%clk 0:01:00.5]} 29... f4 {[%clk 0:00:16.9]} 30. Rf1 {[%clk 0:00:37.7]} 30...
Nh4 {[%clk 0:00:15.6]} 31. Bxf4 {[%clk 0:00:33.6]} 31... Nxf3+ {[%clk
0:00:11.2]} 32. Rxf3 {[%clk 0:00:34.5]} 32... Bg4 {[%clk 0:00:09.5]} 33. Rc5
{[%clk 0:00:06.8]} 33... Bxf3 {[%clk 0:00:03.8]} 34. Qb8+ {[%clk 0:00:07.1]}
34... Kd7 {[%clk 0:00:04.3]} 35. Qxb7+ {[%clk 0:00:07.8]} 35... Ke6 {[%clk
0:00:05.2]} 36. Rxc6+ {[%clk 0:00:06.9]} 36... Bxc6 {[%clk 0:00:06.1]} 37. Qxc6+
{[%clk 0:00:07.8]} 37... Kf5 {[%clk 0:00:06.7]} 38. Qe4+ {[%clk 0:00:08.1]}
38... Kf6 {[%clk 0:00:06.6]} 39. Qe5+ {[%clk 0:00:07.4]} 39... Kg6 {[%clk
0:00:07.1]} 40. Qg5+ {[%clk 0:00:08.2]} 40... Kh7 {[%clk 0:00:07.6]} 41. Qh6#
{[%clk 0:00:09.1]} 1-0

[Event "*** SCC Grand Prix: Titled Tuesday Blitz"]
[Site "Chess.com"]
[Date "2020.08.25"]
[Round "2"]
[White "Salem-AR"]
[Black "JesseKraai"]
[Result "1-0"]
[WhiteElo "2913"]
[BlackElo "2557"]
[TimeControl "180+1"]
[EndTime "10:19:42 PDT"]
[Termination "Salem-AR won by resignation"]

1. e4 {[%clk 0:02:54.6]} 1... d6 {[%clk 0:02:59.1]} 2. d4 {[%clk 0:02:54.5]}
2... Nf6 {[%clk 0:02:58.8]} 3. Nc3 {[%clk 0:02:54.4]} 3... e5 {[%clk 0:02:59.3]}
4. Nf3 {[%clk 0:02:54.5]} 4... Nbd7 {[%clk 0:02:59.5]} 5. Bc4 {[%clk 0:02:53.8]}
5... Be7 {[%clk 0:02:59.9]} 6. g4 {[%clk 0:02:53.4]} 6... g6 {[%clk 0:02:57.4]}
7. g5 {[%clk 0:02:52.5]} 7... Nh5 {[%clk 0:02:57.4]} 8. Be3 {[%clk 0:02:52]}
8... O-O {[%clk 0:02:55.9]} 9. Qd2 {[%clk 0:02:50.6]} 9... c6 {[%clk 0:02:55.3]}
10. a3 {[%clk 0:02:45.4]} 10... b5 {[%clk 0:02:53.6]} 11. Ba2 {[%clk 0:02:35.2]}
11... Bb7 {[%clk 0:02:48.4]} 12. d5 {[%clk 0:02:34.8]} 12... Nb6 {[%clk
0:02:33.2]} 13. O-O-O {[%clk 0:02:21.4]} 13... Nc4 {[%clk 0:01:51.9]} 14. Qe2
{[%clk 0:01:55.9]} 14... Nxe3 {[%clk 0:01:33.6]} 15. fxe3 {[%clk 0:01:56.8]}
15... Rb8 {[%clk 0:01:18.6]} 16. Kb1 {[%clk 0:01:44.2]} 16... a5 {[%clk
0:01:15.9]} 17. dxc6 {[%clk 0:01:43.8]} 17... Bxc6 {[%clk 0:01:15.8]} 18. Nd5
{[%clk 0:01:43.5]} 18... b4 {[%clk 0:01:12.5]} 19. axb4 {[%clk 0:01:28.7]} 19...
Bxd5 {[%clk 0:01:03.8]} 20. Rxd5 {[%clk 0:01:17.5]} 20... Rxb4 {[%clk
0:01:00.1]} 21. Nxe5 {[%clk 0:01:12.7]} 21... Qb8 {[%clk 0:00:44.8]} 22. Nc6
{[%clk 0:00:42.5]} 22... Rxb2+ {[%clk 0:00:44]} 23. Ka1 {[%clk 0:00:35.6]} 23...
Rxa2+ {[%clk 0:00:43.3]} 24. Kxa2 {[%clk 0:00:36.5]} 24... Qc7 {[%clk 0:00:40]}
25. Qc4 {[%clk 0:00:31.1]} 25... Ng7 {[%clk 0:00:29.6]} 26. Rb1 {[%clk
0:00:22.4]} 26... Ne6 {[%clk 0:00:28.5]} 27. Qa6 {[%clk 0:00:20]} 27... Bxg5
{[%clk 0:00:15.3]} 28. Rxg5 {[%clk 0:00:19.8]} 28... Nxg5 {[%clk 0:00:14.6]} 29.
Rb7 {[%clk 0:00:20.4]} 29... Qxb7 {[%clk 0:00:12.5]} 30. Qxb7 {[%clk 0:00:20.4]}
30... Ne6 {[%clk 0:00:12.5]} 31. Ne7+ {[%clk 0:00:19.5]} 31... Kg7 {[%clk
0:00:12.6]} 32. Qb2+ {[%clk 0:00:19.1]} 32... f6 {[%clk 0:00:11.5]} 33. Nd5
{[%clk 0:00:19.5]} 33... Rf7 {[%clk 0:00:11.6]} 34. Qb6 {[%clk 0:00:18.7]} 34...
Nc5 {[%clk 0:00:11.8]} 35. Qxd6 {[%clk 0:00:17.8]} 35... Nxe4 {[%clk 0:00:12.2]}
36. Qc6 {[%clk 0:00:18]} 36... f5 {[%clk 0:00:11.6]} 37. c4 {[%clk 0:00:17]}
37... Kh6 {[%clk 0:00:11.7]} 38. c5 {[%clk 0:00:16.4]} 38... Rf8 {[%clk
0:00:11.4]} 39. Nb6 {[%clk 0:00:16]} 39... Rd8 {[%clk 0:00:11.1]} 40. Nd7 {[%clk
0:00:12.4]} 40... Re8 {[%clk 0:00:08.7]} 41. Qc7 {[%clk 0:00:11.8]} 41... Re7
{[%clk 0:00:08.8]} 42. c6 {[%clk 0:00:11.8]} 42... Nf6 {[%clk 0:00:08.7]} 43.
Qd6 {[%clk 0:00:11.8]} 43... Ng8 {[%clk 0:00:07.7]} 44. c7 {[%clk 0:00:11.4]}
44... Rxd7 {[%clk 0:00:08.1]} 45. Qxd7 {[%clk 0:00:11.6]} 45... Nf6 {[%clk
0:00:08.8]} 46. Qd8 {[%clk 0:00:11.9]} 1-0

[Event "*** SCC Grand Prix: Titled Tuesday Blitz"]
[Site "Chess.com"]
[Date "2020.08.25"]
[Round "2"]
[White "Volodar_Murzin"]
[Black "Srisshhhtea"]
[Result "1-0"]
[WhiteElo "2659"]
[BlackElo "2296"]
[TimeControl "180+1"]
[EndTime "10:19:43 PDT"]
[Termination "Volodar_Murzin won on time"]

1. e4 {[%clk 0:03:00.9]} 1... e6 {[%clk 0:02:59.2]} 2. d4 {[%clk 0:02:59.3]}
2... d5 {[%clk 0:02:58]} 3. Nc3 {[%clk 0:02:57.6]} 3... Nf6 {[%clk 0:02:57.1]}
4. e5 {[%clk 0:02:56.2]} 4... Nfd7 {[%clk 0:02:55.7]} 5. Nce2 {[%clk 0:02:55.7]}
5... c5 {[%clk 0:02:55.1]} 6. c3 {[%clk 0:02:55.4]} 6... Nc6 {[%clk 0:02:54.5]}
7. f4 {[%clk 0:02:53.6]} 7... Be7 {[%clk 0:02:50.5]} 8. Nf3 {[%clk 0:02:51.1]}
8... b6 {[%clk 0:02:44.7]} 9. g3 {[%clk 0:02:27.9]} 9... O-O {[%clk 0:02:43.2]}
10. h4 {[%clk 0:02:25.5]} 10... f5 {[%clk 0:02:36.3]} 11. Ng5 {[%clk 0:02:21.9]}
11... Ndb8 {[%clk 0:02:33.2]} 12. Be3 {[%clk 0:01:47]} 12... h6 {[%clk 0:02:29]}
13. Nf3 {[%clk 0:01:32.8]} 13... Ba6 {[%clk 0:02:24.5]} 14. h5 {[%clk
0:01:28.6]} 14... Nd7 {[%clk 0:02:04.8]} 15. Bh3 {[%clk 0:01:25.8]} 15... cxd4
{[%clk 0:01:59]} 16. Nexd4 {[%clk 0:01:10.6]} 16... Nxd4 {[%clk 0:01:57]} 17.
Nxd4 {[%clk 0:01:11.5]} 17... Nc5 {[%clk 0:01:55.9]} 18. Bf1 {[%clk 0:00:46.8]}
18... Bxf1 {[%clk 0:01:53.8]} 19. Kxf1 {[%clk 0:00:47.7]} 19... Qc8 {[%clk
0:01:51.2]} 20. Kg2 {[%clk 0:00:46.3]} 20... Ne4 {[%clk 0:01:50.7]} 21. Qe2
{[%clk 0:00:21.2]} 21... Bc5 {[%clk 0:01:48.5]} 22. Nf3 {[%clk 0:00:18.2]} 22...
Be7 {[%clk 0:01:45.8]} 23. Rad1 {[%clk 0:00:16.9]} 23... Rd8 {[%clk 0:01:33.6]}
24. Rhg1 {[%clk 0:00:14.7]} 24... Rb8 {[%clk 0:01:14.8]} 25. Kh2 {[%clk
0:00:11.7]} 25... a6 {[%clk 0:01:14.4]} 26. Nd4 {[%clk 0:00:10.3]} 26... b5
{[%clk 0:01:13.8]} 27. g4 {[%clk 0:00:09.4]} 27... Bc5 {[%clk 0:00:59.6]} 28.
gxf5 {[%clk 0:00:05]} 28... Bxd4 {[%clk 0:00:30.4]} 29. Qg4 {[%clk 0:00:03.7]}
29... Rb7 {[%clk 0:00:24.9]} 30. Bxd4 {[%clk 0:00:04.2]} 30... exf5 {[%clk
0:00:23.7]} 31. Qg6 {[%clk 0:00:04.8]} 31... Re8 {[%clk 0:00:19.1]} 32. Qxh6
{[%clk 0:00:05]} 32... Qe6 {[%clk 0:00:14.9]} 33. Rg6 {[%clk 0:00:04.3]} 33...
Qf7 {[%clk 0:00:10.6]} 34. Rdg1 {[%clk 0:00:04.4]} 34... Ree7 {[%clk 0:00:05.5]}
35. e6 {[%clk 0:00:04.4]} 35... Qf8 {[%clk 0:00:02.8]} 36. Kh3 {[%clk
0:00:03.7]} 1-0

[Event "*** SCC Grand Prix: Titled Tuesday Blitz"]
[Site "Chess.com"]
[Date "2020.08.25"]
[Round "2"]
[White "hongnhung1234"]
[Black "chesstatour"]
[Result "0-1"]
[WhiteElo "2332"]
[BlackElo "1895"]
[TimeControl "180+1"]
[EndTime "10:19:44 PDT"]
[Termination "chesstatour won by checkmate"]

1. e4 {[%clk 0:03:00.9]} 1... c6 {[%clk 0:02:58.9]} 2. d4 {[%clk 0:03:00.9]}
2... d5 {[%clk 0:02:59.6]} 3. f3 {[%clk 0:03:01.4]} 3... e6 {[%clk 0:02:58.7]}
4. Nc3 {[%clk 0:03:01.1]} 4... Bb4 {[%clk 0:02:55.3]} 5. Bf4 {[%clk 0:03:00.7]}
5... dxe4 {[%clk 0:02:51.1]} 6. fxe4 {[%clk 0:03:01.6]} 6... Nf6 {[%clk
0:02:51.5]} 7. Qd3 {[%clk 0:02:58.6]} 7... c5 {[%clk 0:02:48]} 8. dxc5 {[%clk
0:02:44.9]} 8... Qxd3 {[%clk 0:02:43.1]} 9. Bxd3 {[%clk 0:02:45.8]} 9... Bxc5
{[%clk 0:02:31.9]} 10. Nb5 {[%clk 0:02:37.7]} 10... Na6 {[%clk 0:02:26.7]} 11.
Nd6+ {[%clk 0:02:18.3]} 11... Ke7 {[%clk 0:02:21.2]} 12. Nxc8+ {[%clk
0:02:11.8]} 12... Raxc8 {[%clk 0:02:12.3]} 13. c3 {[%clk 0:01:57.2]} 13... Bxg1
{[%clk 0:01:40.2]} 14. Rxg1 {[%clk 0:01:55.3]} 14... Nc5 {[%clk 0:01:38.9]} 15.
Bc2 {[%clk 0:01:40.8]} 15... Ncxe4 {[%clk 0:01:36.4]} 16. Ke2 {[%clk 0:01:37.1]}
16... h6 {[%clk 0:01:29.9]} 17. Rad1 {[%clk 0:01:33.9]} 17... Rhd8 {[%clk
0:01:25.8]} 18. Be3 {[%clk 0:01:30.8]} 18... b6 {[%clk 0:01:18.4]} 19. Bd4
{[%clk 0:01:22.6]} 19... Nd6 {[%clk 0:01:01.8]} 20. Bb3 {[%clk 0:01:16.7]} 20...
Nc4 {[%clk 0:00:53.7]} 21. Rb1 {[%clk 0:00:54.2]} 21... e5 {[%clk 0:00:41.8]}
22. Bxc4 {[%clk 0:00:48.8]} 22... Rxc4 {[%clk 0:00:34.2]} 23. Be3 {[%clk
0:00:45.2]} 23... Ng4 {[%clk 0:00:27.6]} 24. Rbd1 {[%clk 0:00:40]} 24... Rxd1
{[%clk 0:00:25.2]} 25. Rxd1 {[%clk 0:00:40.9]} 25... Re4 {[%clk 0:00:22]} 26.
Kf3 {[%clk 0:00:41]} 26... Nxe3 {[%clk 0:00:16.4]} 27. Re1 {[%clk 0:00:34.4]}
27... f5 {[%clk 0:00:15.5]} 28. Rxe3 {[%clk 0:00:29]} 28... Rxe3+ {[%clk
0:00:15.7]} 29. Kxe3 {[%clk 0:00:29.9]} 29... Ke6 {[%clk 0:00:16.2]} 30. c4
{[%clk 0:00:28.2]} 30... g5 {[%clk 0:00:15.2]} 31. b4 {[%clk 0:00:26.5]} 31...
e4 {[%clk 0:00:14.1]} 32. Kd4 {[%clk 0:00:24.7]} 32... Kd6 {[%clk 0:00:13.5]}
33. a4 {[%clk 0:00:23.7]} 33... a5 {[%clk 0:00:12.2]} 34. bxa5 {[%clk
0:00:10.6]} 34... bxa5 {[%clk 0:00:12.4]} 35. h3 {[%clk 0:00:08.6]} 35... h5
{[%clk 0:00:11.9]} 36. g3 {[%clk 0:00:08.4]} 36... h4 {[%clk 0:00:10.7]} 37.
gxh4 {[%clk 0:00:08.5]} 37... gxh4 {[%clk 0:00:10.5]} 38. Ke3 {[%clk 0:00:06.5]}
38... Kc5 {[%clk 0:00:10.1]} 39. Kf4 {[%clk 0:00:06.7]} 39... Kxc4 {[%clk
0:00:10.5]} 40. Kxf5 {[%clk 0:00:07.4]} 40... e3 {[%clk 0:00:10.4]} 41. Ke5
{[%clk 0:00:07.9]} 41... e2 {[%clk 0:00:10.9]} 42. Kd6 {[%clk 0:00:08.8]} 42...
e1=Q {[%clk 0:00:11.4]} 43. Kc6 {[%clk 0:00:09.7]} 43... Qb4 {[%clk 0:00:11.6]}
44. Kc7 {[%clk 0:00:09.7]} 44... Qxa4 {[%clk 0:00:11.2]} 45. Kd8 {[%clk
0:00:10.6]} 45... Qb4 {[%clk 0:00:11]} 46. Kc8 {[%clk 0:00:11.5]} 46... Qe7
{[%clk 0:00:10.7]} 47. Kb8 {[%clk 0:00:11.3]} 47... Kc5 {[%clk 0:00:10.8]} 48.
Ka8 {[%clk 0:00:12.2]} 48... Kc6 {[%clk 0:00:10.7]} 49. Kb8 {[%clk 0:00:13.1]}
49... Qb7# {[%clk 0:00:10.7]} 0-1